bitfinex-derivatives/quotes_BTCF0:USTF0_20251216
["timestamp","ask_amount","ask_price","bid_price","bid_amount"]
[1765889905212,0.14593,87262.0,87261.0,0.14820196]
[1765889906511,0.14593,87262.0,87261.0,0.14720196]
[1765889906716,0.14593,87262.0,87261.0,0.14820196]
[1765889910008,0.14593,87262.0,87261.0,0.07322196]
[1765889910210,0.14593,87262.0,87261.0,0.07222196]
[1765889911210,0.17195267,87262.0,87261.0,0.00017196]
[1765889911418,0.17195267,87262.0,87261.0,0.07222196]
[1765889912921,0.1573937,87254.0,87253.0,0.1574928]
[1765889913315,0.14593,87254.0,87253.0,0.1574928]
[1765889913518,0.17606,87265.0,87264.0,0.148572]
[1765889913825,0.20171233,87265.0,87264.0,0.148572]
[1765889914022,0.21317413,87265.0,87264.0,0.148572]
[1765889914425,0.20171233,87265.0,87264.0,0.148572]
[1765889914816,0.20171233,87265.0,87264.0,0.149572]
[1765889916724,0.20171233,87265.0,87264.0,0.148572]
[1765889916922,0.20171233,87265.0,87264.0,0.149572]
[1765889917222,0.15753233,87265.0,87264.0,0.149572]
[1765889918024,0.20019233,87265.0,87264.0,0.149572]
[1765889918729,0.15753233,87265.0,87264.0,0.149572]
[1765889920218,0.20019233,87265.0,87264.0,0.149572]
[1765889921027,0.20019233,87265.0,87264.0,0.080142]
[1765889921230,0.20019233,87265.0,87264.0,0.149572]
[1765889922932,0.20019233,87265.0,87264.0,0.148572]
[1765889923340,0.20019233,87265.0,87264.0,0.011462]
[1765889923929,0.20019233,87265.0,87264.0,0.079142]
[1765889924633,0.20019233,87265.0,87264.0,0.148572]
[1765889924820,0.20019233,87265.0,87264.0,0.13711]
[1765889925027,0.20019233,87265.0,87264.0,0.06768]
[1765889931029,0.1433423,87261.0,87260.0,0.0791423]
[1765889931230,0.16899463,87261.0,87260.0,0.1485723]
[1765889932035,0.16899463,87261.0,87260.0,0.13711]
[1765889932244,0.1433429,87257.0,87256.0,0.13728196]
[1765889932535,0.16899523,87257.0,87256.0,0.13728196]
[1765889933835,0.16899523,87257.0,87256.0,0.06785196]
[1765889934034,0.16899523,87257.0,87256.0,0.13728196]
[1765889934729,0.16899523,87257.0,87256.0,0.06785196]
[1765889935131,0.16899523,87257.0,87256.0,0.13728196]
[1765889935438,0.16899523,87257.0,87256.0,0.00017196]
[1765889935950,0.16899523,87257.0,87256.0,0.13728196]
[1765889937030,0.16899523,87257.0,87256.0,0.06785196]
[1765889937235,0.16899523,87257.0,87256.0,0.13728196]
[1765889937432,0.13188,87242.0,87241.0,0.21894011]
[1765889937637,0.13188,87242.0,87241.0,0.148575]
[1765889938633,0.13188,87248.0,87247.0,0.1485742]
[1765889938835,0.15759673,87248.0,87247.0,0.1485742]
[1765889939036,0.16906083,87248.0,87247.0,0.1485742]
[1765889940134,0.16906083,87248.0,87247.0,0.1495742]
[1765889941042,0.16906083,87248.0,87247.0,0.1505742]
[1765889941843,0.16906083,87248.0,87247.0,0.1495742]
[1765889942342,0.16906083,87248.0,87247.0,0.1485742]
[1765889943352,0.21172083,87248.0,87247.0,0.06768]
[1765889943942,0.21172083,87248.0,87247.0,0.12802]
[1765889945544,0.02571673,87248.0,87247.0,0.12802]
[1765889945736,0.00017196,87250.0,87249.0,0.11998]
[1765889947940,0.00017196,87250.0,87249.0,0.12098]
[1765889948540,0.00017196,87250.0,87249.0,0.12198]
[1765889948744,0.00017196,87250.0,87249.0,0.12398]
[1765889949340,0.00017196,87250.0,87249.0,0.12198]
[1765889949739,0.00017196,87250.0,87249.0,0.12398]
[1765889951043,0.00017196,87250.0,87249.0,0.12198]
[1765889951244,0.00017196,87250.0,87249.0,0.12398]
[1765889951444,0.12630196,87250.0,87249.0,0.12398]
[1765889951644,0.00017196,87250.0,87249.0,0.12198]
[1765889951848,0.00017196,87250.0,87249.0,0.12398]
[1765889952144,0.12630196,87250.0,87249.0,0.12398]
[1765889952548,0.12630196,87250.0,87249.0,0.12198]
[1765889952750,0.06367196,87250.0,87249.0,0.12398]
[1765889953648,0.00017196,87250.0,87249.0,0.12398]
[1765889954152,0.00017196,87250.0,87249.0,0.12198]
[1765889954353,0.00017196,87250.0,87249.0,0.12398]
[1765889956542,0.12630196,87250.0,87249.0,0.12398]
[1765889957846,0.12630196,87250.0,87249.0,0.12298]
[1765889958045,0.12630196,87250.0,87249.0,0.12098]
[1765889958246,0.12630196,87250.0,87249.0,0.12198]
[1765889959948,0.06367196,87250.0,87249.0,0.12198]
[1765889961252,0.00017196,87250.0,87249.0,0.12198]
[1765889962248,0.06367196,87250.0,87249.0,0.12198]
[1765889963454,0.06367196,87250.0,87249.0,0.12298]
[1765889964550,0.06367196,87250.0,87249.0,0.12198]
[1765889964853,0.00017196,87250.0,87249.0,0.12298]
[1765889965349,0.12630196,87250.0,87249.0,0.06264]
[1765889965549,0.12630196,87250.0,87249.0,0.12298]
[1765889965752,0.00017196,87250.0,87249.0,0.12298]
[1765889966551,0.00017196,87250.0,87249.0,0.12198]
[1765889967148,0.00017196,87250.0,87249.0,0.12298]
[1765889968458,0.00017196,87250.0,87249.0,0.12198]
[1765889968659,0.00017196,87250.0,87249.0,0.12398]
[1765889969252,0.00017196,87250.0,87249.0,0.12198]
[1765889969453,0.00017196,87250.0,87249.0,0.12398]
[1765889972460,0.16367,87264.0,87263.0,0.1314421]
[1765889972660,0.18934169,87264.0,87263.0,0.1314421]
[1765889974054,0.18934169,87264.0,87263.0,0.1324421]
[1765889988567,0.18934169,87264.0,87263.0,0.1314421]
[1765889988775,0.18934169,87264.0,87263.0,0.1324421]
[1765889989978,0.18934169,87264.0,87263.0,0.1334421]
[1765889990576,0.15180169,87264.0,87263.0,0.1334421]
[1765889990977,0.18520169,87264.0,87263.0,0.1334421]
[1765889991363,0.18520169,87264.0,87263.0,0.1324421]
[1765889991567,0.18520169,87264.0,87263.0,0.1334421]
[1765889993673,0.18520169,87264.0,87263.0,0.1324421]
[1765889993978,0.18520169,87264.0,87263.0,0.1334421]
[1765889997079,0.18520169,87264.0,87263.0,0.1314421]
[1765889997277,0.18520169,87264.0,87263.0,0.001]
[1765889997579,0.10942,87245.0,87244.0,0.15620296]
[1765889997784,0.10942,87245.0,87244.0,0.0114646]
[1765889997974,0.13510793,87245.0,87244.0,0.1274646]
[1765889998578,0.14657233,87245.0,87244.0,0.1274646]
[1765889998978,0.13510793,87245.0,87244.0,0.1304646]
[1765889999383,0.10942,87245.0,87244.0,0.1304646]
[1765889999577,0.10942,87245.0,87244.0,0.1334646]
[1765890000382,0.13511017,87245.0,87244.0,0.006]
[1765890001284,0.13511017,87245.0,87244.0,0.122]
[1765890001480,0.10942,87245.0,87244.0,0.122]
[1765890001885,0.10942,87245.0,87244.0,0.119]
[1765890002184,0.10942,87248.0,87244.0,0.003]
[1765890002396,0.10942,87248.0,87247.0,0.116]
[1765890002688,0.13507862,87248.0,87247.0,0.116]
[1765890003285,0.20489508,87260.0,87247.0,0.116]
[1765890003286,0.0334,87265.0,87252.0,0.116]
[1765890003477,0.1419,87270.0,87269.0,0.1201413]
[1765890003682,0.16756156,87270.0,87269.0,0.1201413]
[1765890004089,0.16756156,87270.0,87269.0,0.13144213]
[1765890004883,0.16956156,87270.0,87269.0,0.13144213]
[1765890005588,0.13616156,87270.0,87269.0,0.13144213]
[1765890005781,0.002,87270.0,87269.0,0.13144213]
[1765890005995,0.00017196,87278.0,87277.0,0.1123402]
[1765890006186,0.02583454,87278.0,87277.0,0.1123402]
[1765890006385,0.07698454,87278.0,87277.0,0.1123402]
[1765890006588,0.13136454,87278.0,87277.0,0.1123402]
[1765890006781,0.0114606,87275.0,87274.0,0.0614806]
[1765890006990,0.10553,87266.0,87265.0,0.0614818]
[1765890007292,0.10553,87266.0,87265.0,0.1123418]
[1765890007479,0.10553,87266.0,87265.0,0.12382885]
[1765890008098,0.10553,87266.0,87265.0,0.12482885]
[1765890008394,0.1375,87270.0,87269.0,0.1123413]
[1765890008891,0.1375,87276.0,87275.0,0.1123405]
[1765890009191,0.00017196,87278.0,87277.0,0.10088]
[1765890009791,0.1375,87294.0,87293.0,0.10088]
[1765890009984,0.16313529,87294.0,87293.0,0.10088]
[1765890011092,0.16313529,87294.0,87293.0,0.1123381]
[1765890011292,0.16313529,87294.0,87293.0,0.1133381]
[1765890011488,0.16313529,87294.0,87293.0,0.10188]
[1765890011690,0.16313529,87294.0,87293.0,0.001]
[1765890012288,0.16313529,87294.0,87293.0,0.05102]
[1765890012690,0.16413529,87294.0,87293.0,0.10188]
[1765890013394,0.16413529,87294.0,87293.0,0.10088]
[1765890013692,0.16513529,87294.0,87293.0,0.10088]
[1765890013897,0.10553,87286.0,87285.0,0.00017185]
[1765890014198,0.13113364,87286.0,87285.0,0.11251105]
[1765890014390,0.10553,87286.0,87285.0,0.10105185]
[1765890014597,0.10553,87286.0,87285.0,0.00017185]
[1765890015099,0.13113127,87286.0,87285.0,0.00017185]
[1765890015795,0.1169922,87262.0,87261.0,0.10088]
[1765890015997,0.10553,87260.0,87259.0,0.0114625]
[1765890016304,0.10553,87260.0,87259.0,0.1123425]
[1765890017101,0.10653,87260.0,87259.0,0.1123425]
[1765890017784,0.10553,87252.0,87251.0,0.10105185]
[1765890017987,0.10553,87252.0,87251.0,0.00017185]
[1765890018182,0.10553,87252.0,87251.0,0.11251555]
[1765890018398,0.05115,87255.0,87254.0,0.1123433]
[1765890018597,0.10553,87255.0,87254.0,0.1123433]
[1765890018791,0.1375,87255.0,87254.0,0.05002]
[1765890018992,0.10553,87252.0,87251.0,0.01163535]
[1765890019192,0.10553,87252.0,87251.0,0.06165535]
[1765890019689,0.10553,87252.0,87251.0,0.11251535]
[1765890020094,0.10553,87252.0,87251.0,0.11351535]
[1765890020697,0.10553,87252.0,87251.0,0.11251535]
[1765890020889,0.10553,87252.0,87251.0,0.11351535]
[1765890021491,0.10553,87252.0,87251.0,0.06265535]
[1765890022693,0.10553,87252.0,87251.0,0.11351535]
[1765890024200,0.1375,87255.0,87254.0,0.1123433]
[1765890025513,0.10553,87232.0,87231.0,0.13185011]
[1765890025812,0.10553,87232.0,87231.0,0.05002]
[1765890025995,0.10553,87232.0,87231.0,1.55002]
[1765890026991,0.10553,87232.0,87231.0,1.55402]
[1765890027811,0.1169962,87232.0,87231.0,1.55402]
[1765890028001,0.10553,87232.0,87231.0,1.55402]
[1765890028202,0.10553,87232.0,87231.0,1.55602]
[1765890029913,0.10553,87232.0,87231.0,0.10688]
[1765890034120,0.10553,87232.0,87231.0,0.1183463]
[1765890034322,0.10553,87232.0,87231.0,0.10688]
[1765890034527,0.10553,87232.0,87231.0,0.006]
[1765890035420,0.10553,87232.0,87231.0,0.05273]
[1765890037623,0.10553,87232.0,87231.0,0.006]
[1765890038831,0.1061572,87224.0,87223.0,0.00017196]
[1765890040233,0.1061572,87224.0,87223.0,0.00417196]
[1765890040733,0.1061572,87224.0,87223.0,0.00717196]
[1765890041434,0.1061572,87224.0,87223.0,0.01863926]
[1765890041630,0.1061572,87224.0,87223.0,0.11112926]
[1765890041631,0.09469,87224.0,87223.0,0.11112926]
[1765890043038,0.09469,87224.0,87223.0,0.09966196]
[1765890043242,0.09469,87224.0,87223.0,0.05390196]
[1765890043629,0.09469,87224.0,87223.0,0.09966196]
[1765890044841,0.09469,87224.0,87218.0,3.12e-06]
[1765890044842,0.09469,87219.0,87218.0,3.12e-06]
[1765890045032,0.09469,87219.0,87168.0,0.02809]
[1765890045033,0.14196,87187.0,87186.0,0.09249]
[1765890045335,0.04727,87187.0,87186.0,0.09249]
[1765890045537,0.12347,87198.0,87197.0,0.09249]
[1765890046042,0.12356111,87198.0,87197.0,0.09249]
[1765890046534,0.12356111,87198.0,87186.0,0.006]
[1765890046535,0.09469,87187.0,87186.0,0.09849]
[1765890046929,0.09069,87187.0,87186.0,0.09249]
[1765890047128,0.08769,87187.0,87186.0,0.09249]
[1765890047837,0.08769,87187.0,87186.0,0.04673]
[1765890048042,0.12347,87178.0,87177.0,0.1038523]
[1765890048741,0.09469,87185.0,87184.0,0.09249]
[1765890048935,0.00017206,87186.0,87185.0,0.09249]
[1765890049138,0.04744206,87186.0,87185.0,0.09249]
[1765890050237,0.09486206,87186.0,87185.0,0.09349]
[1765890050830,0.09486206,87186.0,87185.0,0.09449]
[1765890058258,0.09486206,87186.0,87185.0,0.002]
[1765890060046,0.09469,87175.0,87174.0,0.05824996]
[1765890060246,9.111e-05,87175.0,87174.0,0.09249]
[1765890060443,0.12347,87185.0,87184.0,0.09249]
[1765890062339,0.12347,87185.0,87184.0,0.09349]
[1765890062947,0.12347,87185.0,87184.0,0.09449]
[1765890063746,0.12347,87185.0,87184.0,0.002]
[1765890066443,0.12347,87185.0,87184.0,0.04675]
[1765890066846,0.12347,87185.0,87184.0,0.08935]
[1765890067347,0.04727,87185.0,87184.0,0.08935]
[1765890067760,0.04661206,87186.0,87185.0,0.08735]
[1765890068050,0.09020206,87186.0,87185.0,0.08735]
[1765890068355,0.00017206,87186.0,87185.0,0.08735]
[1765890068552,0.11702,87204.0,87203.0,0.08735]
[1765890068751,0.14333345,87204.0,87203.0,0.08735]
[1765890069049,0.09003,87195.0,87194.0,0.08735]
[1765890069248,0.11702,87199.0,87198.0,0.08735]
[1765890069460,0.04644,87199.0,87198.0,0.08735]
[1765890069650,0.11902,87204.0,87203.0,0.08735]
[1765890070256,0.11902,87204.0,87203.0,0.04475]
[1765890070649,0.11902,87204.0,87203.0,0.08735]
[1765890071162,0.11702,87204.0,87203.0,0.08735]
[1765890071462,0.11802,87204.0,87203.0,0.08735]
[1765890071852,0.12002,87204.0,87203.0,0.08735]
[1765890072751,0.11802,87204.0,87203.0,0.08735]
[1765890072950,0.12002,87204.0,87203.0,0.08735]
[1765890073151,0.11902,87204.0,87203.0,0.08735]
[1765890073350,0.14537781,87204.0,87203.0,0.08735]
[1765890073951,0.14637781,87204.0,87203.0,0.08735]
[1765890077259,0.14437781,87204.0,87203.0,0.08735]
[1765890077459,0.14637781,87204.0,87203.0,0.08735]
[1765890078965,0.02935781,87204.0,87203.0,0.08735]
[1765890079157,0.003,87204.0,87203.0,0.08735]
[1765890080157,0.002,87204.0,87203.0,0.08835]
[1765890080363,0.00017206,87207.0,87206.0,0.08735]
[1765890081571,0.20067337,87220.0,87219.0,0.08735]
[1765890081572,0.11702,87220.0,87219.0,0.08735]
[1765890081773,0.14336932,87220.0,87219.0,0.08735]
[1765890083459,0.09003,87212.0,87211.0,0.08752206]
[1765890084959,0.09203,87212.0,87211.0,0.08752206]
[1765890086361,0.09303,87212.0,87211.0,0.08752206]
[1765890090172,0.09303,87212.0,87211.0,0.05639096]
[1765890090478,0.09303,87212.0,87211.0,0.09899096]
[1765890099269,0.08365,87212.0,87211.0,0.09899096]
[1765890101477,0.08165,87212.0,87211.0,0.09899096]
[1765890101685,0.08265,87212.0,87211.0,0.09899096]
[1765890101988,0.08165,87212.0,87211.0,0.09899096]
[1765890102174,0.08265,87212.0,87211.0,0.09899096]
[1765890102669,0.08165,87212.0,87211.0,0.09899096]
[1765890103299,0.10764,87216.0,87215.0,0.0933384]
[1765890103580,0.10764,87220.0,87219.0,0.0933379]
[1765890104468,0.03959,87220.0,87219.0,0.0933379]
[1765890104873,0.08065,87220.0,87219.0,0.0933379]
[1765890105674,0.08365,87220.0,87219.0,0.0933379]
[1765890106281,0.08265,87220.0,87219.0,0.0933379]
[1765890107673,0.08165,87220.0,87219.0,0.0933379]
[1765890107874,0.08265,87220.0,87219.0,0.0933379]
[1765890108684,0.10787,87220.0,87219.0,0.0933379]
[1765890108980,0.10887,87220.0,87219.0,0.0933379]
[1765890109376,0.10787,87220.0,87219.0,0.0933379]
[1765890110982,0.10887,87220.0,87219.0,0.0933379]
[1765890111489,0.10687,87220.0,87219.0,0.0933379]
[1765890111690,0.10887,87220.0,87219.0,0.0933379]
[1765890119279,0.10787,87220.0,87219.0,0.0933379]
[1765890119479,0.10887,87220.0,87219.0,0.0933379]
[1765890120282,0.10787,87220.0,87219.0,0.0933379]
[1765890120891,0.10887,87220.0,87219.0,0.0933379]
[1765890121278,0.10787,87220.0,87219.0,0.0511079]
[1765890121484,0.10887,87220.0,87219.0,0.0933379]
[1765890125393,0.1203377,87220.0,87219.0,0.0933379]
[1765890126590,0.10887,87220.0,87219.0,0.0933379]
[1765890126790,0.1203377,87220.0,87219.0,0.0933379]
[1765890127190,0.14642543,87220.0,87219.0,0.0933379]
[1765890128294,0.13495773,87220.0,87219.0,0.0933379]
[1765890131300,0.02908773,87220.0,87219.0,0.0933379]
[1765890131500,0.003,87220.0,87219.0,0.0933379]
[1765890132401,0.001,87220.0,87219.0,0.0933379]
[1765890132601,0.002,87220.0,87219.0,0.0933379]
[1765890133003,0.001,87220.0,87219.0,0.0933379]
[1765890133188,0.04069,87220.0,87219.0,0.0933379]
[1765890133388,0.07629,87220.0,87219.0,0.0933379]
[1765890133700,0.10145206,87228.0,87227.0,0.0820568]
[1765890133900,0.1275543,87228.0,87227.0,0.0820568]
[1765890134794,0.1295543,87228.0,87227.0,0.0820568]
[1765890134992,0.1295543,87228.0,87227.0,0.17260674]
[1765890135300,0.1295543,87228.0,87227.0,0.0820568]
[1765890136003,0.1295543,87228.0,87227.0,0.09382382]
[1765890136501,0.1315543,87228.0,87227.0,0.09382382]
[1765890137594,0.1315543,87228.0,87227.0,0.18513495]
[1765890137794,0.1315543,87228.0,87227.0,0.0820568]
[1765890138792,0.1315543,87228.0,87227.0,0.09354456]
[1765890139504,0.1315543,87228.0,87227.0,0.0820568]
[1765890139698,0.1315543,87228.0,87227.0,0.0114668]
[1765890139904,0.07429,87218.0,87217.0,0.0820581]
[1765890140100,0.07429,87218.0,87217.0,0.09376651]
[1765890140407,0.05989,87218.0,87217.0,0.09376651]
[1765890140704,0.04858,87218.0,87217.0,0.09376651]
[1765890141600,0.04958,87218.0,87217.0,0.09376651]
[1765890142595,0.05058,87218.0,87217.0,0.09376651]
[1765890143402,0.04069,87218.0,87217.0,0.09376651]
[1765890143600,0.004,87218.0,87217.0,0.09376651]
[1765890143998,0.004,87218.0,87217.0,0.0820581]
[1765890144598,0.002,87218.0,87217.0,0.09379179]
[1765890144798,0.07446206,87228.0,87227.0,0.0820568]
[1765890144993,0.10055496,87228.0,87227.0,0.0820568]
[1765890146000,0.10255496,87228.0,87227.0,0.0820568]
[1765890147709,0.10355496,87228.0,87227.0,0.0820568]
[1765890148806,0.11502166,87228.0,87227.0,0.0820568]
[1765890150203,0.11502166,87228.0,87227.0,0.07059]
[1765890150410,0.11502166,87228.0,87227.0,0.0820568]
[1765890152808,0.07429,87218.0,87217.0,0.09379179]
[1765890154006,0.07529,87218.0,87217.0,0.09379179]
[1765890155004,0.07629,87218.0,87217.0,0.09379179]
[1765890155208,0.07829,87218.0,87217.0,0.09379179]
[1765890160117,0.07729,87218.0,87217.0,0.09379179]
[1765890161018,0.07429,87218.0,87217.0,0.09379179]
[1765890161214,0.07829,87218.0,87217.0,0.09379179]
[1765890161608,0.07629,87218.0,87217.0,0.09379179]
[1765890161909,0.07829,87218.0,87217.0,0.09379179]
[1765890178723,0.10449122,87218.0,87217.0,0.09379179]
[1765890179632,0.10249122,87218.0,87217.0,0.09379179]
[1765890179831,0.10349122,87218.0,87217.0,0.09379179]
[1765890181235,0.04169,87218.0,87217.0,0.09379179]
[1765890181823,0.10777383,87218.0,87217.0,0.09379179]
[1765890182122,0.10677383,87218.0,87217.0,0.09379179]
[1765890182320,0.10777383,87218.0,87217.0,0.09379179]
[1765890183036,0.10677383,87218.0,87217.0,0.09379179]
[1765890183430,0.10577383,87218.0,87217.0,0.09379179]
[1765890183630,0.10677383,87218.0,87217.0,0.09379179]
[1765890186042,0.10577383,87218.0,87217.0,0.09379179]
[1765890186241,0.10677383,87218.0,87217.0,0.09379179]
[1765890186629,0.10577383,87218.0,87217.0,0.09379179]
[1765890186829,0.10677383,87218.0,87217.0,0.09379179]
[1765890187741,0.10577383,87218.0,87217.0,0.09379179]
[1765890187944,0.10677383,87218.0,87217.0,0.09379179]
[1765890188539,0.02824383,87218.0,87217.0,0.09379179]
[1765890188738,0.002,87218.0,87217.0,0.09379179]
[1765890189438,0.001,87218.0,87217.0,0.09379179]
[1765890189945,0.07516,87218.0,87217.0,0.09379179]
[1765890190240,0.07616,87218.0,87217.0,0.09379179]
[1765890190439,0.10241699,87218.0,87217.0,0.09379179]
[1765890191340,0.01163886,87228.0,87217.0,0.09379179]
[1765890191341,0.00017206,87228.0,87227.0,0.0834968]
[1765890191649,0.07516,87248.0,87247.0,0.0476241]
[1765890191834,0.07516,87248.0,87247.0,0.0834941]
[1765890192144,0.47516,87248.0,87247.0,0.0834941]
[1765890192345,0.07516,87248.0,87247.0,0.0834941]
[1765890192844,0.07716,87248.0,87247.0,0.0834941]
[1765890193245,0.07916,87248.0,87247.0,0.0834941]
[1765890193744,0.07716,87248.0,87247.0,0.0834941]
[1765890193948,0.07916,87248.0,87247.0,0.0834941]
[1765890194846,0.07716,87248.0,87247.0,0.0834941]
[1765890195033,0.07916,87248.0,87247.0,0.0834941]
[1765890195236,0.07916,87248.0,87247.0,0.07203]
[1765890195643,0.07716,87248.0,87247.0,0.07203]
[1765890195947,0.07916,87248.0,87247.0,0.07203]
[1765890199050,0.04265,87248.0,87247.0,0.07203]
[1765890200853,0.004,87248.0,87247.0,0.07203]
[1765890201046,0.00017195,87256.0,87255.0,0.0834931]
[1765890201047,0.07533195,87256.0,87255.0,0.0834931]
[1765890202148,0.08133195,87256.0,87255.0,0.0834931]
[1765890203756,0.00617195,87256.0,87255.0,0.0834931]
[1765890204450,0.00229207,87258.0,87255.0,0.0834931]
[1765890204451,0.00229207,87258.0,87257.0,0.07203]
[1765890204638,0.00936,87276.0,87275.0,0.0834905]
[1765890204639,0.07516,87276.0,87275.0,0.0834905]
[1765890204841,0.10119995,87276.0,87275.0,0.0834905]
[1765890205252,0.07516,87276.0,87275.0,0.0834905]
[1765890205947,0.08016,87276.0,87275.0,0.0834905]
[1765890207240,0.0114613,87269.0,87268.0,0.03587]
[1765890207446,0.08544,87268.0,87267.0,1.95e-06]
[1765890207650,0.07516,87245.0,87244.0,0.09343]
[1765890208753,0.07516,87245.0,87244.0,0.09443]
[1765890209255,0.07516,87245.0,87244.0,0.09343]
[1765890211253,0.03865,87245.0,87244.0,0.09343]
[1765890211461,0.00017195,87253.0,87252.0,0.0834935]
[1765890211656,0.07533195,87253.0,87252.0,0.0834935]
[1765890211856,0.00017195,87253.0,87252.0,0.0834935]
[1765890212656,0.24877808,87262.0,87261.0,0.0834923]
[1765890212853,0.07516,87262.0,87261.0,0.0834923]
[1765890214350,0.04065,87262.0,87261.0,0.0834923]
[1765890214655,0.004,87262.0,87261.0,0.0834923]
[1765890215454,0.03818195,87270.0,87269.0,0.0872913]
[1765890215663,0.07777195,87270.0,87269.0,0.0872913]
[1765890216167,0.03818195,87270.0,87269.0,0.0872913]
[1765890217061,0.08077195,87270.0,87269.0,0.0872913]
[1765890217456,0.04318195,87270.0,87269.0,0.0872913]
[1765890218561,0.08277195,87270.0,87269.0,0.0872913]
[1765890223657,0.08277195,87270.0,87269.0,0.0501513]
[1765890224259,0.08277195,87270.0,87269.0,0.0872913]
[1765890232862,0.04318195,87270.0,87269.0,0.0872913]
[1765890233062,0.08277195,87270.0,87269.0,0.0872913]
[1765890234968,0.08277195,87270.0,87269.0,0.07583]
[1765890235969,0.08277195,87270.0,87269.0,0.03869]
[1765890236166,0.08277195,87270.0,87269.0,0.07583]
[1765890241366,0.03104531,87270.0,87269.0,0.07583]
[1765890241566,0.03801,87286.0,87285.0,0.0114591]
[1765890241765,0.11493213,87286.0,87285.0,0.07583]
[1765890241968,0.10347273,87286.0,87285.0,0.07583]
[1765890242379,0.10347273,87286.0,87285.0,0.08710795]
[1765890242576,0.11493183,87286.0,87285.0,0.08710795]
[1765890242775,0.10847273,87286.0,87285.0,0.08710795]
[1765890243576,0.11247273,87286.0,87285.0,0.08710795]
[1765890244578,0.10747273,87286.0,87285.0,0.08710795]
[1765890244776,0.10847273,87286.0,87285.0,0.08710795]
[1765890245180,0.10447273,87286.0,87285.0,0.08710795]
[1765890245377,0.10347273,87286.0,87285.0,0.08710795]
[1765890246078,0.10347273,87286.0,87285.0,0.10947795]
[1765890248079,0.10447273,87286.0,87285.0,0.10947795]
[1765890248772,0.10347273,87286.0,87285.0,0.10947795]
[1765890251471,0.10347273,87286.0,87285.0,0.08710795]
[1765890253683,0.10347273,87286.0,87277.0,0.00017185]
[1765890253684,0.0226,87280.0,87277.0,0.00017185]
[1765890253987,0.0857301,87278.0,87277.0,0.00017185]
[1765890254181,0.1115847,87278.0,87277.0,0.00017185]
[1765890254981,0.1115847,87278.0,87277.0,0.07876185]
[1765890255285,0.1001246,87278.0,87277.0,0.07876185]
[1765890255982,0.1011246,87278.0,87277.0,0.07876185]
[1765890256379,0.1125847,87278.0,87277.0,0.07876185]
[1765890256583,0.1115847,87278.0,87277.0,0.07876185]
[1765890257176,0.1001246,87278.0,87277.0,0.07876185]
[1765890257991,0.1115847,87278.0,87277.0,0.07876185]
[1765890258188,0.1001246,87278.0,87277.0,0.07976185]
[1765890258589,0.1001246,87278.0,87277.0,0.07876185]
[1765890261980,0.07427,87278.0,87277.0,0.07976185]
[1765890262479,0.07427,87278.0,87277.0,0.07876185]
[1765890262676,0.07427,87278.0,87277.0,0.07976185]
[1765890262891,0.07427,87288.0,87287.0,0.07859]
[1765890263189,0.10015306,87288.0,87287.0,0.0900489]
[1765890267993,0.07427,87288.0,87287.0,0.0900489]
[1765890268988,0.07444185,87294.0,87293.0,0.0900481]
[1765890269188,0.10031804,87294.0,87293.0,0.0900481]
[1765890269391,0.11177604,87294.0,87293.0,0.0900481]
[1765890269688,0.10031804,87294.0,87293.0,0.0900481]
[1765890270595,0.06390804,87294.0,87293.0,0.0900481]
[1765890270800,0.06490804,87294.0,87293.0,0.0900481]
[1765890271095,0.10231804,87294.0,87293.0,0.0900481]
[1765890276089,0.10231804,87294.0,87293.0,0.03962]
[1765890276391,0.11377604,87294.0,87293.0,0.0761]
[1765890276595,0.07573,87293.0,87292.0,0.0114582]
[1765890276899,0.10160619,87293.0,87292.0,0.0114582]
[1765890277690,0.10260619,87293.0,87292.0,0.0114582]
[1765890277998,0.10260619,87293.0,87292.0,0.0511082]
[1765890278499,0.10260619,87293.0,87292.0,0.0875882]
[1765890279298,0.07673,87293.0,87292.0,0.0875882]
[1765890283196,0.11410347,87293.0,87292.0,0.07613]
[1765890284292,0.11410347,87293.0,87292.0,0.03965]
[1765890284491,0.11410347,87293.0,87285.0,0.02234]
[1765890284492,0.07573,87286.0,87285.0,0.0875892]
[1765890284693,0.07573,87286.0,87285.0,0.0114592]
[1765890284893,0.07573,87286.0,87285.0,0.0875892]
[1765890285089,0.10164998,87286.0,87285.0,0.0875892]
[1765890285701,0.0871901,87278.0,87277.0,0.01163205]
[1765890285898,0.07573,87278.0,87277.0,0.01163205]
[1765890286506,0.07573,87278.0,87277.0,0.05128205]
[1765890287299,0.10165699,87278.0,87277.0,0.01163205]
[1765890287500,0.10265699,87278.0,87277.0,0.01163205]
[1765890288204,0.10265699,87278.0,87277.0,0.08776205]
[1765890288400,0.10365699,87278.0,87277.0,0.08776205]
[1765890288598,0.10365699,87278.0,87277.0,0.01163205]
[1765890288803,0.10265699,87278.0,87277.0,0.01163205]
[1765890289102,0.10365699,87278.0,87277.0,0.05128205]
[1765890289301,0.10365699,87278.0,87277.0,0.08776205]
[1765890289707,0.10265699,87278.0,87277.0,0.08776205]
[1765890290919,0.07673,87278.0,87277.0,0.08776205]
[1765890291801,0.07573,87278.0,87277.0,0.08776205]
[1765890292212,0.07573,87288.0,87287.0,0.0875887]
[1765890292404,0.10165768,87288.0,87287.0,0.0875887]
[1765890292605,0.02592768,87288.0,87287.0,0.0875887]
[1765890292912,0.33787125,87300.0,87287.0,0.0875887]
[1765890292913,0.07590185,87294.0,87293.0,0.0875881]
[1765890293109,0.10182688,87294.0,87293.0,0.0875881]
[1765890294410,0.10182688,87294.0,87293.0,0.0885881]
[1765890295803,0.10182688,87294.0,87293.0,0.0875881]
[1765890296000,0.10182688,87294.0,87293.0,0.0885881]
[1765890299215,0.07590185,87294.0,87293.0,0.0885881]
[1765890299611,0.03921185,87294.0,87293.0,0.0885881]
[1765890300009,0.00017185,87294.0,87293.0,0.0885881]
[1765890300517,0.03921185,87294.0,87293.0,1.5875881]
[1765890300816,0.03921185,87294.0,87293.0,1.5885881]
[1765890300817,0.00017185,87294.0,87293.0,1.5885881]
[1765890301013,0.03921185,87294.0,87293.0,1.5885881]
[1765890301213,0.00017185,87294.0,87293.0,1.5885881]
[1765890301813,0.0504951,87317.0,87316.0,0.07613]
[1765890302118,0.10173481,87317.0,87316.0,0.07613]
[1765890302314,0.02272,87335.0,87315.0,0.02234]
[1765890302514,0.07573,87333.0,87332.0,0.03965]
[1765890302813,0.07573,87327.0,87326.0,0.0875838]
[1765890303115,0.24908125,87336.0,87335.0,0.07613]